bitfinex/quotes_SOLUSD_20240908
["timestamp","ask_amount","ask_price","bid_price","bid_amount"]
[1725822972923,0.8314154,129.41,129.36,9.68888507]
[1725822973100,0.8314154,129.41,129.39,9.68888507]
[1725822981916,0.8314154,129.41,129.35,6.0723]
[1725822981917,0.8314154,129.41,129.37,9.68888507]
[1725822982709,2.76360686,129.41,129.37,9.68888507]
[1725822983035,21.91807932,129.4,129.37,9.68888507]
[1725822983731,1.9322649,129.39,129.35,9.68888507]
[1725822983903,20.43860717,129.38,129.35,9.68888507]
[1725822988228,20.43860717,129.38,129.34,16.3456]
[1725822988229,20.43860717,129.38,129.32,6.5243]
[1725822988434,20.43860717,129.38,129.35,9.68888507]
[1725822988731,1.93270137,129.37,129.35,9.68888507]
[1725822989023,20.43860717,129.38,129.32,1.24393148]
[1725822989225,18.95068938,129.36,129.35,9.68888507]
[1725822992068,20.25784338,129.39,129.35,9.68888507]
[1725822992214,22.1904474,129.39,129.35,9.68888507]
[1725822992536,19.69025861,129.38,129.35,9.68888507]
[1725822994405,19.69025861,129.38,129.33,9.68888507]
[1725822994826,1.93280257,129.37,129.31,20.0]
[1725822995038,19.69025861,129.38,129.33,9.68888507]
[1725822997514,19.55402068,129.37,129.33,9.68888507]
[1725823005128,19.55402068,129.37,129.31,20.0]
[1725823005325,1.93289998,129.36,129.3,16.0561]
[1725823005555,19.55402068,129.37,129.29,9.68888507]
[1725823005556,1.93331672,129.35,129.29,9.68888507]
[1725823005858,20.23368481,129.34,129.27,15.9165]
[1725823006028,1.93361778,129.33,129.26,9.68888507]
[1725823006222,21.76607756,129.32,129.26,9.68888507]
[1725823006440,19.7534817,129.31,129.26,9.68888507]
[1725823006655,1.93380053,129.3,129.25,9.68888507]
[1725823006954,1.93392326,129.29,129.24,15.9165]
[1725823007168,1.93392326,129.29,129.25,9.68888507]
[1725823007849,21.68746414,129.31,129.25,9.68888507]
[1725823008079,18.98207599,129.3,129.26,20.0]
[1725823009145,18.98207599,129.3,129.27,9.68888507]
[1725823013955,18.98207599,129.3,129.29,9.68888507]
[1725823022052,6.0589,129.36,129.29,29.68888507]
[1725823022268,23.21837186,129.34,129.33,9.68888507]
[1725823029067,23.21837186,129.34,129.33,29.68888507]
[1725823031894,23.21837186,129.34,129.29,16.6094]
[1725823031895,23.21837186,129.34,129.31,9.68888507]
[1725823035947,24.23127115,129.33,129.23,9.60111415]
[1725823036153,24.91670169,129.32,129.22,9.33166779]
[1725823036363,24.91670169,129.32,129.28,9.68888507]
[1725823037368,26.85026949,129.32,129.28,9.68888507]
[1725823037679,24.54341483,129.31,129.28,9.68888507]
[1725823039172,24.54341483,129.31,129.26,9.68888507]
[1725823040372,1.93373356,129.3,129.26,9.68888507]
[1725823040759,24.54341483,129.31,129.26,9.68888507]
[1725823041373,1.93382603,129.3,129.26,9.68888507]
[1725823042097,24.54341483,129.31,129.26,9.68888507]
[1725823042985,24.54341483,129.31,129.28,9.68888507]
[1725823054305,23.27,129.37,129.3,9.68888507]
[1725823054306,40.94289073,129.36,129.3,9.68888507]
[1725823054465,40.94289073,129.36,129.29,20.0]
[1725823054466,40.94289073,129.36,129.32,9.68888507]
[1725823056293,1.93306723,129.35,129.3,9.68888507]
[1725823056465,40.94289073,129.36,129.3,9.68888507]
[1725823067105,1.93322051,129.35,129.3,9.68888507]
[1725823067282,1.93322051,129.35,129.27,1.55038525]
[1725823067616,1.93322051,129.35,129.29,9.68888507]
[1725823067774,1.93322051,129.35,129.3,20.0]
[1725823068181,1.93322051,129.35,129.29,9.68888507]
[1725823071503,28.11802051,129.35,129.27,11.23927032]
[1725823071703,28.11802051,129.35,129.28,20.0]
[1725823074388,28.11802051,129.35,129.27,9.68888507]
[1725823074389,51.38802051,129.35,129.27,11.23944288]
[1725823074589,51.38802051,129.35,129.27,9.68888507]
[1725823074590,6.0156,129.33,129.27,9.68888507]
[1725823074898,1.93383564,129.32,129.27,11.23944288]
[1725823075101,1.93383564,129.32,129.27,9.68888507]
[1725823075302,1.93383564,129.32,129.27,11.23944288]
[1725823075507,1.93383564,129.32,129.27,9.68888507]
[1725823075712,1.93383564,129.32,129.27,11.23944288]
[1725823076109,1.93383564,129.32,129.27,9.68888507]
[1725823076582,1.93383564,129.32,129.27,11.23949893]
[1725823076794,1.93383564,129.32,129.27,9.68888507]
[1725823077094,1.93383564,129.32,129.27,11.23949893]
[1725823077295,1.93383564,129.32,129.27,9.68888507]
[1725823077497,1.93383564,129.32,129.27,11.23949893]
[1725823077696,1.93383564,129.32,129.27,9.68888507]
[1725823077902,1.93383564,129.32,129.27,11.23949893]
[1725823078191,1.93383564,129.32,129.27,9.68888507]
[1725823078398,1.93383564,129.32,129.27,11.23949893]
[1725823078601,1.93383564,129.32,129.27,9.68888507]
[1725823078906,1.93383564,129.32,129.27,11.23949893]
[1725823079103,1.93383564,129.32,129.27,9.68888507]
[1725823079518,1.93383564,129.32,129.27,11.2394905]
[1725823080425,6.0156,129.33,129.27,11.2394905]
[1725823080593,6.0156,129.33,129.27,9.68888507]
[1725823081111,1.93374517,129.32,129.27,9.68888507]
[1725823081611,1.93374517,129.32,129.27,11.23960527]
[1725823081946,6.0156,129.33,129.27,9.68888507]
[1725823082467,1.93374858,129.32,129.26,9.68888507]
[1725823082682,1.93374858,129.32,129.27,1.55071996]
[1725823083017,1.93374858,129.32,129.27,3.10144184]
[1725823083397,7.94943625,129.33,129.27,3.10144184]
[1725823083600,6.0156,129.33,129.27,1.55072188]
[1725823084221,6.0156,129.33,129.26,9.68888507]
[1725823085313,6.0156,129.33,129.28,9.68888507]
[1725823087819,1.93368694,129.32,129.28,9.68888507]
[1725823089294,6.0156,129.33,129.28,9.68888507]
[1725823089720,1.93364392,129.32,129.25,15.6283]
[1725823090031,6.0156,129.33,129.27,9.68888507]
[1725823090322,1.93364426,129.32,129.27,9.68888507]
[1725823091403,6.0156,129.33,129.27,9.68888507]
[1725823094420,1.9336416,129.32,129.27,9.68888507]
[1725823095355,6.0156,129.33,129.27,9.68888507]
[1725823097730,1.93364056,129.32,129.27,9.68888507]
[1725823100923,1.93364056,129.32,129.25,15.6283]
[1725823101130,1.93364056,129.32,129.27,9.68888507]
[1725823103006,6.0156,129.33,129.27,9.68888507]
[1725823106128,1.9336448,129.32,129.27,9.68888507]
[1725823108240,17.0723448,129.32,129.22,16.6071]
[1725823108546,6.6523,129.3,129.23,9.68888507]
[1725823108816,15.1387,129.28,129.19,16.6071]
[1725823109043,1.93458394,129.27,129.21,9.68888507]
[1725823109255,1.93453147,129.26,129.21,9.68888507]
[1725823109927,17.07323155,129.28,129.21,9.68888507]
[1725823117066,17.07323155,129.28,129.19,16.6071]
[1725823117349,17.07323155,129.28,129.22,9.68888507]
[1725823118989,17.07323155,129.28,129.19,16.6071]
[1725823119037,17.07323155,129.28,129.21,9.68888507]
[1725823120057,17.07323155,129.28,129.2,20.0]
[1725823120259,17.07323155,129.28,129.21,9.68888507]
[1725823122748,6.086,129.27,129.21,9.68888507]
[1725823122953,1.9347089,129.26,129.21,9.68888507]
[1725823125268,1.9347089,129.26,129.16,24.03278625]
[1725823125447,15.4517,129.25,129.18,9.68888507]
[1725823125650,1.93502143,129.24,129.18,9.68888507]
[1725823125982,1.93502143,129.23,129.18,9.68888507]
[1725823126359,6.6472,129.22,129.14,6.55631604]
[1725823126672,35.4517,129.21,129.1,16.4555]
[1725823126979,1.93577169,129.2,129.13,9.68888507]
[1725823127180,1.93577169,129.2,129.1,16.4555]
[1725823127357,1.93577169,129.2,129.08,14.63311471]
[1725823127358,6.6472,129.19,129.08,14.63311471]
[1725823127670,15.4517,129.17,129.1,9.68888507]
[1725823127851,1.93619491,129.16,129.1,9.68888507]
[1725823129065,15.4517,129.17,129.12,9.68888507]
[1725823129361,15.4517,129.17,129.14,9.68888507]
[1725823129660,17.3875541,129.17,129.14,9.68888507]
[1725823130243,15.4517,129.17,129.14,9.68888507]
[1725823133480,23.90029579,129.16,129.14,9.68888507]
[1725823134251,23.90029579,129.16,129.11,20.0]
[1725823134458,23.90029579,129.16,129.14,9.68888507]
[1725823136592,6.158,129.15,129.04,14.63257948]
[1725823136754,6.158,129.15,129.08,9.68888507]
[1725823136755,23.49131175,129.14,129.08,9.68888507]
[1725823137085,1.93649136,129.13,129.08,9.68888507]
[1725823137870,23.49131175,129.14,129.08,9.68888507]
[1725823138055,1.93647459,129.12,129.08,9.68888507]
[1725823138264,1.93647459,129.12,129.02,23.95670195]
[1725823138457,1.93647459,129.12,129.09,9.68888507]
[1725823138867,23.49131175,129.14,129.09,9.68888507]
[1725823139078,1.93649083,129.13,129.09,9.68888507]
[1725823139978,23.49131175,129.14,129.09,9.68888507]
[1725823140376,23.49131175,129.14,129.11,9.68888507]
[1725823144888,20.10842424,129.16,129.11,9.68888507]
[1725823145460,1.93618165,129.15,129.11,9.68888507]
[1725823145675,21.42406078,129.14,129.11,9.68888507]
[1725823145869,19.48785591,129.14,129.11,9.68888507]
[1725823147076,19.48785591,129.14,129.13,9.68888507]
[1725823149558,19.48785591,129.14,129.08,15.5028]
[1725823149826,19.48785591,129.14,129.11,9.68888507]
[1725823152009,1.93606104,129.13,129.08,15.5028]
[1725823152166,1.93622324,129.13,129.11,9.68888507]
[1725823152366,1.93622083,129.15,129.11,9.68888507]
[1725823152566,20.0345703,129.14,129.11,9.68888507]
[1725823152793,1.93621901,129.13,129.11,9.68888507]
[1725823153468,18.09837392,129.14,129.11,9.68888507]
[1725823153666,1.93624328,129.13,129.11,9.68888507]
[1725823154571,18.09837392,129.14,129.11,9.68888507]
[1725823157083,18.09837392,129.14,129.13,9.68888507]
[1725823159180,18.09837392,129.14,129.08,15.5028]
[1725823159382,18.09837392,129.14,129.12,9.68888507]
[1725823160694,32.67761602,129.17,129.12,9.68888507]
[1725823160888,16.98919306,129.16,129.12,9.68888507]
[1725823162188,1.93611208,129.15,129.12,9.68888507]
[1725823162594,16.98919306,129.16,129.12,9.68888507]
[1725823164500,1.93620868,129.15,129.12,9.68888507]
[1725823164708,16.98919306,129.16,129.12,9.68888507]
[1725823167993,1.93620698,129.15,129.08,15.5028]
[1725823168189,18.26249869,129.14,129.11,9.68888507]
[1725823168501,1.93622066,129.13,129.08,15.5028]
[1725823168686,18.27077713,129.13,129.09,9.68888507]
[1725823169686,1.4579861,129.12,129.09,9.68888507]
[1725823170278,1.4579861,129.12,129.08,15.5028]
[1725823170494,1.4579861,129.12,129.08,25.19168507]
[1725823173419,1.4579861,129.12,129.09,1.55289869]
[1725823173893,1.4579861,129.12,129.08,25.19168507]
[1725823174094,1.4579861,129.12,129.09,1.55289845]
[1725823175310,1.4579861,129.12,129.09,11.24178352]
[1725823175893,1.4579861,129.12,129.04,15.6549]
[1725823176208,15.78911032,129.11,129.06,9.68888507]
[1725823176516,1.93689001,129.1,129.07,1.55301795]
[1725823176812,15.78911032,129.11,129.07,1.55301795]
[1725823176988,15.78911032,129.11,129.06,9.68888507]
[1725823177190,15.78911032,129.11,129.07,1.55300373]
[1725823177488,15.78911032,129.11,129.06,9.68888507]
[1725823177811,15.78911032,129.11,129.07,1.55307429]
[1725823178591,15.78911032,129.11,129.05,1.55307429]
[1725823178801,15.78911032,129.11,129.07,9.68888507]
[1725823179109,15.78911032,129.11,129.07,11.24195936]
[1725823179409,15.78911032,129.11,129.07,9.68888507]
[1725823179919,15.78911032,129.11,129.07,11.24195936]
[1725823180091,15.78911032,129.11,129.07,9.68888507]
[1725823180612,1.93689535,129.1,129.07,11.24195936]
[1725823180789,1.93689535,129.1,129.07,9.68888507]
[1725823181099,15.78911032,129.11,129.07,9.68888507]
[1725823181300,15.78911032,129.11,129.07,11.24195936]
[1725823181490,15.78911032,129.11,129.07,9.68888507]
[1725823181900,15.78911032,129.11,129.07,11.24195936]
[1725823182101,15.78911032,129.11,129.07,9.68888507]
[1725823182487,15.78911032,129.11,129.07,11.24195936]
[1725823182688,15.78911032,129.11,129.07,9.68888507]
[1725823183187,15.78911032,129.11,129.07,11.24195936]
[1725823183386,15.78911032,129.11,129.07,9.68888507]
[1725823184203,15.20399318,129.12,129.07,11.24195658]
[1725823184397,1.93682505,129.11,129.07,9.68888507]
[1725823184597,1.93683493,129.1,129.07,9.68888507]
[1725823185589,1.93689147,129.11,129.07,9.68888507]
[1725823185788,15.20399318,129.12,129.07,9.68888507]
[1725823186349,1.93689225,129.11,129.07,9.68888507]
[1725823186612,15.20399318,129.12,129.07,9.68888507]
[1725823186613,1.93689163,129.1,129.07,9.68888507]
[1725823186791,1.93689163,129.1,129.05,1.55307151]
[1725823186990,1.93689163,129.1,129.07,9.68888507]
[1725823187587,1.93692119,129.11,129.07,9.68888507]
[1725823187888,1.93690878,129.1,129.07,9.68888507]
[1725823188893,17.14092629,129.12,129.07,9.68888507]
[1725823189106,14.80000498,129.11,129.07,9.68888507]
[1725823191313,1.45782062,129.1,129.07,9.68888507]
[1725823192508,14.80000498,129.11,129.07,9.68888507]
[1725823197199,14.22572208,129.12,129.07,9.68888507]
[1725823199025,18.26391942,129.13,129.07,9.68888507]
[1725823199202,32.6037513,129.13,129.07,9.68888507]
[1725823199406,14.17487397,129.12,129.07,9.68888507]
[1725823201920,1.93691814,129.11,129.07,9.68888507]
[1725823202119,1.93695414,129.1,129.07,9.68888507]
[1725823203091,1.93695408,129.11,129.07,9.68888507]
[1725823204018,1.93695479,129.1,129.07,9.68888507]
[1725823204814,1.93695485,129.11,129.07,9.68888507]
[1725823205020,1.93699361,129.1,129.06,9.68888507]
[1725823205724,1.93699361,129.1,129.04,15.6549]
[1725823205911,13.91630401,129.09,129.04,15.6549]
[1725823206214,1.93742574,129.08,129.04,15.6549]
[1725823207400,13.91630401,129.09,129.04,15.6549]
[1725823208009,13.91630401,129.09,129.05,9.68888507]
[1725823212531,1.93730545,129.08,129.05,9.68888507]
[1725823212957,1.93730724,129.07,129.05,9.68888507]
[1725823213425,13.91630401,129.09,129.05,9.68888507]
[1725823213927,13.77600237,129.1,129.05,9.68888507]
[1725823214119,13.27085752,129.08,129.05,9.68888507]
[1725823217612,1.93734725,129.07,129.05,9.68888507]
[1725823217809,17.03054725,129.07,128.96,24.30925498]
[1725823218010,32.90823879,129.06,129.0,9.68888507]
[1725823218217,32.90823879,129.06,129.02,9.68888507]
[1725823218943,12.90823879,129.06,129.02,9.68888507]
[1725823219122,12.90823879,129.06,129.04,9.68888507]
[1725823220713,12.90823879,129.06,129.03,9.68888507]
[1725823220929,1.93740141,129.05,129.02,9.68888507]
[1725823221115,1.93783805,129.05,128.99,9.68888507]
[1725823221609,12.76114152,129.04,128.99,9.68888507]
[1725823223141,1.93786073,129.03,128.99,9.68888507]
[1725823223437,14.69925434,129.04,128.99,9.68888507]
[1725823223617,12.76114152,129.04,128.99,9.68888507]
[1725823225238,1.93799864,129.03,128.97,15.4048]
[1725823225549,1.93799864,129.03,128.98,9.68888507]
[1725823226930,12.6405274,129.02,128.98,9.68888507]
[1725823228437,12.6405274,129.02,128.97,9.68888507]
[1725823228982,12.6405274,129.02,128.96,0.8380642]
[1725823229141,12.6405274,129.02,128.97,9.68888507]
[1725823229916,1.93843383,129.01,128.97,9.68888507]
[1725823230946,14.57896153,129.02,128.97,9.68888507]
[1725823232163,15.20011767,129.04,128.97,9.68888507]
[1725823232394,12.72155461,129.01,128.97,9.68888507]
[1725823232653,12.72155461,129.01,128.99,9.68888507]
[1725823233046,17.0312548,129.07,128.99,25.09368507]
[1725823233229,32.5164392,129.06,129.02,9.68888507]
[1725823233423,12.5164392,129.06,129.02,9.68888507]
[1725823233720,12.5164392,129.06,129.04,9.68888507]
[1725823234825,12.5164392,129.06,129.04,9.77888507]
[1725823235657,12.5164392,129.06,129.04,0.09]
[1725823236550,1.93755352,129.05,128.99,15.4048]
[1725823236736,1.93773941,129.04,129.02,9.68888507]
[1725823237746,1.93770395,129.05,129.02,9.68888507]
[1725823238838,1.93768509,129.04,129.02,9.68888507]
[1725823239950,1.937728,129.05,129.02,9.68888507]
[1725823240648,1.9377292,129.04,129.02,9.68888507]
[1725823241051,1.9377292,129.04,128.99,15.4048]
[1725823241354,1.9377292,129.04,128.99,9.68888507]
[1725823246459,18.18609733,129.05,128.99,9.68888507]
[1725823246758,18.18609733,129.05,129.01,9.68888507]
[1725823246956,16.248,129.05,129.01,9.68888507]
[1725823249339,16.248,129.05,129.01,9.18888507]
[1725823251062,1.9380051,129.04,129.01,9.18888507]
[1725823251771,18.186023,129.05,129.01,9.18888507]
[1725823252899,18.186023,129.05,128.96,2.39204808]
[1725823253184,18.186023,129.05,129.01,9.68888507]
[1725823254457,16.248,129.05,129.01,9.68888507]
[1725823258649,23.3,129.04,129.01,9.68888507]
[1725823258850,1.93801428,129.05,129.01,9.68888507]
[1725823259048,1.93780783,129.04,129.01,9.68888507]
[1725823260274,1.93780977,129.05,129.01,9.68888507]
[1725823260473,1.93780964,129.04,129.01,9.68888507]
[1725823260656,1.93780431,129.05,129.03,9.68888507]
[1725823265468,14.45391578,129.06,129.03,9.68888507]
[1725823265873,12.5164392,129.06,129.03,9.68888507]
[1725823266980,12.5164392,129.06,129.05,9.68888507]
[1725823268505,12.5164392,129.06,128.99,6.372]
[1725823268789,1.93747807,129.05,129.03,9.68888507]
[1725823270070,12.5164392,129.06,129.03,9.68888507]
[1725823270480,12.5164392,129.06,129.05,9.68888507]
[1725823286291,12.0164392,129.06,129.05,9.68888507]
[1725823287013,12.0164392,129.06,128.99,21.4092]
[1725823287311,1.93791203,129.05,129.0,9.68888507]
[1725823287602,1.93794124,129.04,128.98,9.68888507]
[1725823288285,1.93794124,129.04,128.96,15.8752642]
[1725823288686,1.93794124,129.04,128.97,9.68888507]
[1725823289905,1.93829308,129.04,128.99,9.68888507]
[1725823291196,1.93829308,129.04,128.96,15.8752642]
[1725823291393,1.93829308,129.04,128.98,9.68888507]
[1725823291909,6.4766,129.03,128.96,0.8380642]
[1725823292203,1.93851945,129.02,128.97,9.68888507]
[1725823292507,1.93849454,129.01,128.97,9.68888507]
[1725823292711,1.93848831,129.02,128.97,9.68888507]
[1725823292891,8.41508631,129.03,128.97,9.68888507]
[1725823294788,31.71508631,129.03,128.97,9.68888507]
[1725823297195,16.5437,129.02,128.97,9.68888507]
[1725823297395,1.93859866,129.01,128.97,9.68888507]
[1725823298190,1.93859866,129.01,128.96,0.8380642]
[1725823298694,18.48245938,129.02,128.96,0.8380642]
[1725823299105,1.93871114,129.01,128.96,0.8380642]
[1725823299815,18.48244776,129.02,128.97,9.68888507]
[1725823300018,16.5437,129.02,128.97,9.68888507]
[1725823300813,1.93841009,129.01,128.97,9.68888507]
[1725823303796,1.93841009,129.01,128.96,0.8380642]
[1725823304002,1.93841009,129.01,128.97,9.68888507]
[1725823309135,25.23841009,129.01,128.97,9.68888507]
[1725823309318,1.93841009,129.01,128.97,9.68888507]
[1725823310906,1.93841009,129.01,128.96,0.8380642]
[1725823311116,1.93841009,129.01,128.96,10.52694927]
[1725823313819,18.4822974,129.02,128.96,10.52694927]
[1725823314407,1.93859357,129.01,128.96,10.52694927]
[1725823316707,1.93859357,129.01,128.96,0.8380642]
[1725823318930,18.48244137,129.02,128.97,9.68888507]
[1725823319220,23.3,129.01,128.97,9.68888507]
[1725823319423,18.48244137,129.02,128.97,9.68888507]
[1725823320317,1.93843381,129.01,128.97,9.68888507]
[1725823321605,1.93843381,129.01,128.96,0.8380642]
[1725823322020,21.93843381,129.01,128.96,0.8380642]
[1725823325134,39.84705471,129.0,128.96,0.8380642]
[1725823325429,31.44109285,128.99,128.96,0.8380642]
[1725823325625,16.5482,128.97,128.96,0.8380642]
[1725823325934,29.5041,128.95,128.83,1.68105502]
[1725823326133,20.48892695,128.96,128.83,1.68105502]
[1725823326134,56.15597809,128.94,128.83,1.68105502]
[1725823326329,56.15597809,128.94,128.85,9.68888507]
[1725823327209,62.36057809,128.94,128.85,9.68888507]
[1725823327487,6.2054,128.92,128.83,1.68105502]
[1725823327715,45.2399456,128.94,128.83,11.36994009]
[1725823327716,22.627,128.9,128.83,11.36994009]
[1725823327823,1.94045488,128.89,128.83,11.36994009]
[1725823328039,21.94045488,128.89,128.83,11.36994009]
[1725823328333,21.94045488,128.89,128.83,1.68105502]
[1725823328842,20.0,128.89,128.84,9.68888507]
[1725823329027,20.0,128.89,128.83,1.68105502]
[1725823329348,21.94034677,128.89,128.83,1.68105502]
[1725823329722,45.24034677,128.89,128.83,1.68105502]
[1725823330316,56.15637926,128.89,128.83,1.68105502]
[1725823330831,62.36337926,128.89,128.83,1.68105502]
[1725823331839,23.3,128.87,128.83,1.68105502]
[1725823332050,23.3,128.85,128.83,1.68105502]
[1725823332275,45.24129238,128.84,128.83,1.68105502]
[1725823333135,21.94129238,128.84,128.83,1.68105502]
[1725823334034,1.94129238,128.84,128.83,1.68105502]
[1725823334250,8.0198055,128.87,128.83,1.68105502]
[1725823334474,20.0,128.86,128.83,1.68105502]
[1725823334623,1.94102965,128.85,128.83,1.68105502]
[1725823337750,21.94116418,128.86,128.83,1.68105502]
[1725823338237,21.94103806,128.86,128.83,1.68105502]
[1725823338539,20.0,128.86,128.83,1.68105502]
[1725823338920,21.94102614,128.86,128.83,1.68105502]
[1725823339154,20.0,128.86,128.83,1.68105502]
[1725823339350,21.94106192,128.86,128.83,1.68105502]
[1725823339549,1.9410496,128.85,128.83,1.68105502]
[1725823340943,20.0,128.86,128.83,1.68105502]
[1725823341116,1.94086762,128.85,128.83,1.68105502]
[1725823341319,21.94108371,128.86,128.83,1.68105502]
[1725823341737,20.0,128.86,128.83,1.68105502]
[1725823341931,1.94077587,128.85,128.83,1.68105502]
[1725823342328,16.5482,128.88,128.84,9.68888507]
[1725823342751,16.5482,128.88,128.83,11.36994009]
[1725823342937,1.94057454,128.87,128.83,11.36994009]
[1725823343531,21.94057454,128.87,128.83,11.36994009]
[1725823343844,1.94057454,128.87,128.83,11.36994009]
[1725823344023,21.94057454,128.87,128.83,11.36994009]
[1725823344750,21.94057454,128.87,128.83,1.68105502]
[1725823345044,45.24057454,128.87,128.83,1.68105502]
[1725823345311,11.6327,128.82,128.72,6.0319]
[1725823345616,45.24181586,128.81,128.72,6.0319]
[1725823345661,45.24181586,128.81,128.73,9.68888507]
[1725823346133,13.69734829,128.8,128.72,24.37973885]
[1725823346333,13.69734829,128.8,128.7,16.9951996]
[1725823346334,13.69734829,128.8,128.74,23.87973885]
[1725823346550,13.69734829,128.8,128.7,42.64103539]
[1725823346718,13.69734829,128.8,128.75,24.37973885]
[1725823347921,13.69734829,128.8,128.77,24.37973885]
[1725823349246,18.61887849,128.84,128.77,24.37973885]
[1725823349432,12.65802125,128.83,128.79,24.37973885]
[1725823350245,1.94106588,128.82,128.77,24.37973885]
[1725823350425,1.94106588,128.82,128.76,16.1562]
[1725823350950,12.71558637,128.81,128.76,16.1562]
[1725823351151,1.94137039,128.8,128.76,16.1562]
[1725823351531,1.44137039,128.8,128.76,16.1562]
[1725823351939,1.44135496,128.79,128.75,24.37973885]
[1725823352142,14.15727455,128.81,128.75,24.37973885]
[1725823352329,12.80466597,128.8,128.75,24.37973885]
[1725823354548,12.80466597,128.8,128.77,24.37973885]
[1725823355447,12.80466597,128.8,128.79,24.37973885]
[1725823355636,1.94127017,128.88,128.79,24.37973885]
[1725823355637,18.76829116,128.87,128.79,24.37973885]
[1725823355845,13.55968419,128.86,128.79,24.37973885]
[1725823356144,15.50051504,128.86,128.79,24.37973885]
[1725823356444,12.53992811,128.85,128.79,24.37973885]
[1725823358265,12.53992811,128.85,128.81,24.37973885]
[1725823361141,1.94078928,128.84,128.81,24.37973885]
[1725823361532,12.53992811,128.85,128.81,24.37973885]
[1725823363145,1.94078541,128.84,128.81,24.37973885]
[1725823363345,12.53992811,128.85,128.81,24.37973885]
[1725823365243,14.48071306,128.85,128.81,24.37973885]
[1725823365958,12.53992811,128.85,128.81,24.37973885]
[1725823371161,1.94065911,128.84,128.81,24.37973885]
[1725823376345,1.94065911,128.84,128.82,9.7391167]
[1725823377747,12.53992811,128.85,128.82,9.7391167]
[1725823377944,12.53992811,128.85,128.84,9.7391167]
[1725823378342,6.3577,128.9,128.84,9.7391167]
[1725823378572,20.0,128.89,128.84,9.7391167]
[1725823379153,21.94029378,128.89,128.84,9.7391167]
[1725823383776,20.0,128.89,128.84,9.7391167]
[1725823384272,21.94043249,128.89,128.84,9.7391167]
[1725823384899,51.44733249,128.89,128.81,9.7391167]
[1725823385045,29.5082,128.87,128.8,1.55624526]
[1725823385250,61.6130983,128.86,128.79,16.5742]
[1725823385461,1.94122544,128.85,128.79,16.5742]
[1725823386369,8.15002544,128.85,128.79,16.5742]
[1725823386663,20.0,128.84,128.79,16.5742]
[1725823386865,1.94119996,128.83,128.79,16.5742]
[1725823387061,1.94119951,128.82,128.79,16.5742]
[1725823387751,20.0,128.84,128.79,26.3133167]
[1725823387950,21.94119985,128.85,128.79,26.3133167]
[1725823388276,21.94119985,128.85,128.79,16.5742]
[1725823389145,28.14989985,128.85,128.78,24.35865992]
[1725823389471,6.2092,128.84,128.76,39.99335992]
[1725823389681,21.94141151,128.83,128.76,39.99335992]
[1725823389975,1.94139879,128.82,128.76,41.54960518]
[1725823390267,1.94139879,128.82,128.76,15.6347]
[1725823390461,20.0,128.83,128.77,24.35865992]
[1725823391570,20.0,128.84,128.77,24.35865992]
[1725823392543,1.94119688,128.83,128.76,15.6347]
[1725823392859,1.94161488,128.82,128.74,24.35865992]
[1725823393064,21.94161488,128.82,128.74,25.91490518]
[1725823393369,21.94161488,128.82,128.75,1.55624526]
[1725823393561,21.94161488,128.82,128.74,25.91490518]
[1725823394374,21.94161488,128.82,128.74,24.35865992]
[1725823394825,21.94161488,128.82,128.74,25.91557508]
[1725823397973,21.94161488,128.82,128.74,25.91558362]
[1725823399450,21.94161488,128.82,128.74,24.35865992]
[1725823399855,21.94161488,128.82,128.74,25.91558362]
[1725823400273,21.94161488,128.82,128.74,24.35865992]
[1725823402071,28.15191488,128.82,128.74,24.35865992]
[1725823403660,51.45191488,128.82,128.74,24.35865992]
[1725823403861,20.0,128.82,128.74,24.35865992]
[1725823404076,12.42649778,128.81,128.74,24.35865992]
[1725823404279,1.94158836,128.8,128.74,24.35865992]
[1725823404516,1.94182973,128.79,128.74,24.35865992]
[1725823404686,1.94182715,128.8,128.74,24.35865992]
[1725823404869,14.36826162,128.81,128.74,24.35865992]
[1725823405254,12.42649778,128.81,128.74,24.35865992]
[1725823405763,18.63729778,128.81,128.74,24.35865992]
[1725823406251,12.42649778,128.81,128.74,24.35865992]
[1725823408187,12.42649778,128.81,128.76,9.74754796]
[1725823411097,1.94157419,128.8,128.76,9.74754796]
[1725823411612,12.42649778,128.81,128.76,9.74754796]
[1725823413188,1.94157085,128.8,128.76,9.74754796]
[1725823415788,1.94156916,128.79,128.76,9.74754796]
[1725823415966,1.94156916,128.79,128.73,15.6347]
[1725823416276,20.0,128.8,128.76,9.74754796]
[1725823416478,1.94156679,128.79,128.76,9.74754796]
[1725823416785,20.0,128.8,128.76,9.74754796]
[1725823417199,1.9415663,128.79,128.76,9.74754796]
[1725823417481,20.0,128.8,128.76,9.74754796]
[1725823417891,20.0,128.8,128.71,7.66353391]
[1725823418062,20.0,128.8,128.75,9.74754796]
[1725823419691,20.0,128.8,128.77,9.74754796]
[1725823420787,1.94153952,128.79,128.77,9.74754796]
[1725823428287,1.94153952,128.79,128.74,17.12808596]
[1725823428780,1.94153952,128.79,128.76,9.74754796]
[1725823432908,12.42649778,128.81,128.78,9.74754796]